bitfinex-derivatives/quotes_ETHF0:USTF0_20250903
["timestamp","ask_amount","ask_price","bid_price","bid_amount"]
[1756909265211,0.243,4437.1,4437.0,3.2078]
[1756909267507,1.0165,4437.1,4437.0,3.2078]
[1756909267707,1.0165,4437.1,4437.0,44.0078]
[1756909267908,1.0165,4437.1,4437.0,40.8]
[1756909268110,0.2877,4437.0,4436.1,3.2078]
[1756909268310,3.91039862,4436.2,4435.5,3.2078]
[1756909268506,3.91039862,4435.7,4435.6,40.8]
[1756909268709,4.68389862,4435.7,4435.6,40.8]
[1756909269215,0.243,4435.7,4435.6,40.8]
[1756909269514,1.0165,4435.7,4435.6,40.8]
[1756909270315,1.0165,4435.7,4435.5,3.2078]
[1756909270316,0.7735,4435.6,4435.5,3.2078]
[1756909270715,0.7735,4435.6,4432.8,0.17144726]
[1756909270716,0.2877,4435.0,4434.9,3.2078]
[1756909270910,5.21459862,4435.0,4434.9,3.2078]
[1756909272511,0.243,4435.0,4434.9,3.2078]
[1756909272714,1.0187,4435.0,4434.9,3.2078]
[1756909273209,1.3185,4435.0,4434.9,3.2078]
[1756909274310,5.22889862,4435.0,4434.4,40.8]
[1756909274914,4.45319862,4435.0,4434.4,40.8]
[1756909275117,0.7757,4434.7,4434.4,40.8]
[1756909275316,0.243,4434.6,4434.4,40.8]
[1756909275513,0.243,4434.5,4434.4,40.8]
[1756909275814,0.243,4434.7,4434.4,40.8]
[1756909276015,0.243,4434.7,4434.5,0.22547999]
[1756909276416,0.243,4434.7,4434.6,0.22549999]
[1756909276710,1.0634,4435.5,4434.4,40.8]
[1756909276921,3.2078,4436.1,4435.0,3.2078]
[1756909277120,0.243,4435.7,4435.5,3.2078]
[1756909277320,1.0187,4435.7,4435.5,3.2078]
[1756909277810,0.7757,4435.7,4435.5,3.2078]
[1756909278011,0.243,4435.6,4435.5,3.2078]
[1756909278318,0.243,4435.6,4435.5,44.0078]
[1756909279421,1.0187,4435.6,4435.5,44.0078]
[1756909279718,1.0187,4435.6,4435.5,40.8]
[1756909280115,1.0187,4435.6,4434.9,3.2078]
[1756909280318,3.91039862,4435.2,4434.9,3.2078]
[1756909280615,1.0755,4435.0,4434.9,40.8]
[1756909281017,0.7757,4434.9,4434.4,3.2078]
[1756909281313,0.2998,4435.0,4434.4,3.2078]
[1756909281520,0.243,4435.1,4434.5,40.8]
[1756909282015,0.7757,4434.9,4434.5,40.8]
[1756909282317,0.2998,4435.0,4434.5,40.8]
[1756909282520,0.7757,4434.9,4434.5,40.8]
[1756909283020,0.2998,4435.0,4434.5,40.8]
[1756909283821,0.7757,4434.9,4434.5,40.8]
[1756909284018,3.91039862,4434.7,4434.5,40.8]
[1756909284316,1.0187,4434.6,4434.5,40.8]
[1756909284716,1.0187,4434.6,4434.4,3.2078]
[1756909284918,1.0755,4434.5,4433.8,3.2078]
[1756909285227,4.2833,4435.0,4433.9,41.02552]
[1756909285418,0.243,4434.9,4433.9,40.8]
[1756909285620,0.7757,4434.8,4433.9,40.8]
[1756909286019,3.91039862,4434.8,4433.9,40.8]
[1756909286231,0.7757,4434.7,4433.9,40.8]
[1756909287222,1.0755,4434.5,4433.9,40.8]
[1756909287423,0.7757,4434.3,4433.9,40.8]
[1756909287721,0.243,4434.4,4433.9,40.8]
[1756909287924,0.2998,4434.0,4433.9,40.8]
[1756909288224,0.243,4434.0,4433.9,40.8]
[1756909289116,0.243,4434.0,4433.9,41.12803955]
[1756909291519,1.0187,4434.0,4433.9,41.12803955]
[1756909291920,1.0187,4434.0,4433.9,40.8]
[1756909292121,1.0755,4434.5,4433.9,40.8]
[1756909292320,0.243,4434.4,4434.3,3.2078]
[1756909292921,0.243,4434.4,4434.3,44.0078]
[1756909293119,1.0187,4434.4,4434.3,44.0078]
[1756909293324,1.49915424,4434.4,4434.3,44.0078]
[1756909293524,0.72345424,4434.4,4434.3,44.0078]
[1756909293719,1.49915424,4434.4,4434.3,44.0078]
[1756909293918,1.49915424,4434.4,4434.3,40.8]
[1756909294130,0.7757,4433.4,4433.3,3.2078]
[1756909294423,5.40995083,4433.4,4433.3,3.2078]
[1756909295630,1.0755,4433.0,4432.9,40.8]
[1756909295831,0.7757,4432.9,4432.8,3.37924726]
[1756909296030,0.243,4432.9,4432.8,3.37924726]
[1756909296229,1.0187,4432.9,4432.8,3.37924726]
[1756909296537,1.49964047,4432.9,4432.8,3.37924726]
[1756909297032,0.243,4432.9,4432.8,3.37924726]
[1756909297433,1.49983666,4432.9,4432.8,3.37924726]
[1756909297631,1.49983666,4432.9,4432.8,0.17144726]
[1756909297632,9.63582528,4432.9,4432.8,0.17144726]
[1756909297833,9.41023528,4432.9,4432.8,0.17144726]
[1756909298033,5.41023528,4432.9,4432.8,0.17144726]
[1756909300342,5.41023528,4432.9,4432.3,3.2078]
[1756909300343,0.7757,4432.4,4432.3,3.2078]
[1756909300641,4.92909862,4432.4,4432.3,3.2078]
[1756909300832,5.40965136,4432.4,4432.3,3.2078]
[1756909302133,1.49925274,4432.4,4432.3,3.2078]
[1756909303144,0.72355274,4432.4,4432.3,3.3248]
[1756909303445,0.72355274,4432.4,4432.3,3.2078]
[1756909303646,1.49005274,4432.4,4432.3,3.2078]
[1756909304946,0.72355274,4432.4,4432.3,3.3248]
[1756909305245,0.72355274,4432.4,4432.3,3.2078]
[1756909305543,1.49005274,4432.4,4432.3,3.2078]
[1756909306040,0.7665,4433.4,4432.4,0.117]
[1756909306243,0.72262201,4433.3,4432.9,3.2078]
[1756909306444,0.7665,4433.1,4432.9,3.2078]
[1756909306646,0.7665,4433.1,4433.0,40.8]
[1756909306846,0.7665,4433.7,4433.1,0.117]
[1756909307039,0.722602,4433.6,4433.0,40.8]
[1756909307242,0.243,4433.6,4433.1,0.117]
[1756909307445,32.486,4433.8,4433.5,3.2078]
[1756909307639,0.7665,4434.4,4433.7,0.117]
[1756909307842,0.7665,4434.4,4433.5,3.2078]
[1756909307843,0.7665,4434.2,4433.5,3.2078]
[1756909308046,0.288,4434.0,4433.5,3.2078]
[1756909308352,0.7665,4433.8,4433.5,3.2078]
[1756909308844,0.243,4433.9,4433.5,3.2078]
[1756909309043,0.7665,4433.8,4433.5,3.2078]
[1756909309443,0.7665,4433.8,4433.5,3.3248]
[1756909309747,0.243,4433.9,4433.5,3.3248]
[1756909309948,0.7665,4433.8,4433.6,0.117]
[1756909310343,0.243,4433.9,4433.5,3.2078]
[1756909310538,0.243,4433.9,4433.6,0.117]
[1756909310745,0.7665,4433.8,4433.5,3.2078]
[1756909311245,0.288,4434.0,4433.5,3.2078]
[1756909311455,0.243,4433.9,4433.5,3.2078]
[1756909311642,0.243,4433.9,4433.6,0.117]
[1756909311841,0.243,4433.9,4433.5,3.2078]
[1756909312051,0.243,4433.9,4433.7,40.8]
[1756909312244,1.0095,4433.9,4433.7,40.8]
[1756909312445,0.7665,4434.3,4433.8,0.117]
[1756909312644,0.7665,4434.9,4434.2,3.3248]
[1756909312852,0.72330329,4434.8,4434.2,3.3248]
[1756909313043,0.7665,4434.6,4434.3,40.917]
[1756909313246,0.7665,4434.7,4434.3,40.8]
[1756909313445,0.48034466,4434.6,4434.4,0.117]
[1756909313646,0.243,4434.6,4434.3,40.8]
[1756909313844,0.243,4434.6,4434.4,0.117]
[1756909314545,0.243,4434.6,4434.3,40.8]
[1756909314851,0.243,4434.6,4434.4,0.117]
[1756909315051,0.243,4434.6,4434.3,40.8]
[1756909315250,0.243,4434.6,4434.4,0.117]
[1756909315443,32.499,4435.1,4434.4,0.117]
[1756909315651,32.499,4435.1,4435.0,0.117]
[1756909315949,32.742,4435.1,4434.9,3.2078]
[1756909316141,0.7665,4435.0,4434.9,3.2078]
[1756909316345,32.742,4435.1,4434.9,3.2078]
[1756909316555,33.5085,4435.1,4434.9,3.2078]
[1756909316949,33.5085,4435.1,4434.9,3.3248]
[1756909317653,1.0545,4435.0,4434.9,3.2078]
[1756909318954,0.7665,4434.4,4434.3,44.0078]
[1756909319155,1.0095,4434.4,4434.3,44.0078]
[1756909319655,0.7665,4433.9,4433.7,3.2078]
[1756909319951,1.0095,4433.8,4433.7,3.2078]
[1756909320457,5.0095,4433.8,4433.7,3.2078]
[1756909320957,1.0095,4433.8,4433.7,3.2078]
[1756909321747,5.0095,4433.8,4433.7,3.2078]
[1756909321954,5.0095,4433.8,4433.1,2.4328]
[1756909321955,0.288,4433.5,4433.1,2.4328]
[1756909322256,0.288,4433.0,4432.6,3.2078]
[1756909322448,4.67689862,4432.7,4432.1,3.2078]
[1756909322649,0.243,4432.6,4432.1,3.9162]
[1756909323055,0.7665,4432.5,4432.1,3.9162]
[1756909323250,0.7665,4432.5,4432.2,0.7084]
[1756909323457,0.243,4432.6,4432.1,3.2078]
[1756909323650,0.243,4432.5,4432.1,3.2078]
[1756909323850,3.2078,4433.3,4432.2,0.7084]
[1756909324059,0.72161954,4433.2,4432.2,0.7084]
[1756909324353,37.02433244,4433.4,4432.7,0.7084]
[1756909324354,0.243,4433.1,4432.7,0.7084]
[1756909324650,0.243,4433.1,4432.6,3.2078]
[1756909324651,0.243,4433.1,4433.0,1.0035]
[1756909324851,3.2078,4434.3,4433.1,0.7084]
[1756909325056,0.243,4434.2,4434.1,0.7084]
[1756909325251,0.243,4434.2,4434.1,41.5084]
[1756909325853,0.243,4434.2,4434.1,45.5084]
[1756909326156,0.243,4434.2,4434.1,41.5084]
[1756909326659,3.2078,4435.8,4434.6,0.7084]
[1756909326846,0.7212227,4435.7,4434.6,0.7084]
[1756909327050,0.243,4435.7,4434.6,0.7084]
[1756909329061,3.2078,4435.8,4434.6,0.7084]
[1756909329260,0.243,4435.6,4434.6,0.7084]
[1756909332858,1.0138,4435.5,4434.6,0.7084]
[1756909333060,0.7308,4434.9,4434.2,0.6932]
[1756909333262,0.243,4434.8,4434.2,0.6932]
[1756909333452,0.7308,4434.7,4434.1,40.8]
[1756909333858,0.243,4434.8,4433.9,3.2078]
[1756909334059,0.7308,4434.4,4433.9,3.2078]
[1756909334262,0.7308,4434.2,4433.9,3.2078]
[1756909334560,32.489,4434.6,4434.5,0.9721]
[1756909334762,32.731,4434.6,4434.5,0.9721]
[1756909335866,3.2078,4435.2,4434.6,0.6932]
[1756909336066,0.242,4435.1,4434.6,0.6932]
[1756909336366,3.2078,4435.7,4435.1,0.6932]
[1756909336666,0.7308,4435.5,4435.4,0.0310074]
[1756909336865,1.49285624,4435.5,4435.4,0.0310074]
[1756909337767,1.73485624,4435.5,4435.4,0.0310074]
[1756909338070,0.7308,4435.3,4434.6,40.8]
[1756909338268,0.47905624,4435.2,4434.6,40.8]
[1756909338564,0.47905624,4435.2,4434.7,0.6932]
[1756909338867,0.9728,4435.1,4435.0,0.6932]
[1756909339067,0.7308,4435.0,4434.6,41.4932]
[1756909339268,0.242,4435.1,4434.6,41.4932]
[1756909339466,0.7308,4435.0,4434.6,40.8]
[1756909339671,0.242,4435.1,4434.6,40.8]
[1756909339865,0.9728,4435.1,4434.7,0.6932]
[1756909340169,0.283,4435.0,4434.6,40.8]
[1756909340569,0.7308,4434.9,4434.6,40.8]
[1756909340773,0.283,4435.0,4434.6,40.8]
[1756909341069,0.242,4434.9,4434.7,0.6932]
[1756909341266,0.242,4434.9,4434.6,40.8]
[1756909341461,0.242,4434.9,4434.4,3.2078]
[1756909341462,0.242,4434.9,4434.4,3.901]
[1756909341658,1.21008913,4434.8,4433.9,3.901]
[1756909341859,0.47929391,4434.7,4433.9,3.901]
[1756909342063,0.242,4434.9,4434.0,40.8]
[1756909342362,0.7308,4434.7,4434.0,40.8]
[1756909342568,0.242,4434.9,4433.4,3.2078]
[1756909342569,0.7308,4433.9,4433.4,3.2078]
[1756909342763,0.72142015,4433.8,4433.4,3.2078]
[1756909343070,0.47942015,4433.7,4433.4,44.0078]
[1756909343567,0.47942015,4433.7,4433.5,0.6932]
[1756909343865,0.47942015,4433.7,4433.4,3.2078]
[1756909344874,0.7308,4433.7,4433.0,0.6932]
[1756909345169,3.2078,4434.1,4433.5,0.2789]
[1756909345374,0.72122723,4434.0,4433.6,0.6932]
[1756909345572,32.487,4434.3,4434.0,0.9721]
[1756909345871,0.9728,4434.2,4433.5,0.6932]
[1756909346076,0.7308,4433.9,4433.0,0.9721]
[1756909346265,0.242,4433.8,4433.0,0.9721]
[1756909346471,0.242,4433.8,4433.0,0.2789]
[1756909346671,0.242,4433.8,4433.1,0.6932]
[1756909347070,0.242,4433.8,4433.2,40.8]
[1756909348776,32.487,4434.3,4433.5,0.2789]
[1756909348981,32.487,4434.3,4434.1,0.6932]
[1756909348982,0.242,4434.2,4434.1,0.6932]
[1756909349573,0.242,4434.2,4433.6,0.6932]
[1756909350576,0.7308,4434.1,4433.6,0.6932]
[1756909350778,32.487,4434.3,4434.0,0.2789]
[1756909350973,0.242,4434.2,4434.1,0.6932]
[1756909351771,0.242,4434.2,4433.5,0.2789]
[1756909352081,0.7308,4434.1,4433.5,0.6932]
[1756909352479,0.242,4434.0,4433.5,0.2789]
[1756909353169,0.242,4434.0,4433.6,0.6932]
[1756909353871,32.487,4434.3,4434.0,0.2789]
[1756909354074,32.487,4434.3,4434.1,0.6932]
[1756909354375,0.242,4434.2,4434.1,0.6932]
[1756909354569,0.242,4434.2,4434.1,41.4932]
[1756909354774,3.9386,4435.4,4434.2,0.6932]
[1756909354775,3.2078,4435.4,4434.2,0.6932]
[1756909354974,0.72365072,4435.3,4434.6,0.6932]
[1756909355177,1.21245072,4435.2,4434.6,0.6932]
[1756909355376,0.48165072,4435.1,4434.6,0.6932]
[1756909355582,0.72365072,4435.0,4434.6,0.6932]
[1756909355772,0.242,4434.9,4434.6,0.6932]
[1756909355971,0.242,4434.9,4434.5,3.4867]
[1756909356173,0.242,4434.9,4434.6,0.6932]
[1756909356378,0.242,4434.9,4434.5,3.4867]
[1756909356577,0.7308,4435.2,4434.6,0.6932]
[1756909356782,0.48164619,4435.1,4435.0,0.2789]
[1756909357080,0.72364619,4435.1,4435.0,0.9721]
[1756909357481,0.242,4435.1,4435.0,41.7721]
[1756909358475,32.492,4435.6,4435.0,41.0789]
[1756909358681,0.72355767,4435.5,4435.0,41.0789]
[1756909358978,0.242,4435.5,4435.1,0.6932]
[1756909359180,0.242,4435.5,4435.0,41.0789]
[1756909359574,0.242,4435.5,4435.1,0.6932]
[1756909359575,0.7308,4435.4,4435.1,0.6932]
[1756909359980,0.242,4435.5,4435.1,0.6932]
[1756909360373,0.7308,4435.4,4435.1,0.6932]
[1756909360679,0.525,4435.5,4435.0,40.8]
[1756909360881,0.7308,4435.3,4435.0,40.8]
[1756909361085,0.283,4435.0,4433.9,3.2078]
[1756909361274,3.2078,4434.7,4434.1,0.6932]
[1756909361477,0.48173108,4434.6,4433.9,3.2078]
[1756909361678,0.48173108,4434.5,4434.0,1.0151]
[1756909361879,0.242,4434.4,4434.1,0.7425]
[1756909362078,0.242,4434.3,4434.0,0.2726]
[1756909362784,0.242,4434.4,4434.1,0.7425]
[1756909362981,0.242,4434.7,4434.2,0.7425]
[1756909363181,0.242,4434.7,4434.5,0.2726]
[1756909363375,0.242,4434.7,4434.6,0.7425]
[1756909364586,3.2078,4435.9,4434.6,0.7425]
[1756909364786,0.72366247,4435.5,4434.6,0.7425]
[1756909364986,0.48166247,4435.4,4434.6,0.7425]
[1756909365285,0.48166247,4435.3,4434.6,0.7425]
[1756909365591,0.283,4436.0,4435.1,0.7425]
[1756909365592,0.242,4435.2,4435.1,0.7425]
[1756909365788,0.7459,4435.1,4434.9,3.2078]
[1756909365986,0.242,4435.2,4434.9,3.2078]
[1756909366186,0.242,4435.2,4435.1,40.8]
[1756909366591,4.7235755,4435.2,4434.0,0.7425]
[1756909366787,0.2815,4435.0,4433.9,3.2078]
[1756909367092,0.4815755,4434.9,4433.9,44.0078]
[1756909367287,3.4498,4434.8,4433.9,44.0078]
[1756909367486,0.2815,4434.5,4433.9,44.0078]
[1756909367685,1.0274,4434.0,4433.9,44.0078]
[1756909367893,0.7459,4434.6,4433.9,44.7503]
[1756909368090,0.72367847,4434.5,4433.9,44.7503]
[1756909368291,0.48167847,4434.4,4433.9,44.0078]
[1756909368491,0.48167847,4434.3,4434.0,0.2726]
[1756909368694,0.242,4434.2,4434.1,0.7425]
[1756909368887,3.4893,4435.5,4434.2,0.7425]
[1756909369188,0.72357293,4435.4,4434.7,0.7425]
[1756909369493,0.72357293,4435.3,4434.7,0.7425]
[1756909369689,1.22747293,4435.2,4434.6,3.2078]
[1756909369897,0.7459,4435.2,4434.6,3.2078]
[1756909370194,35.6998,4435.6,4434.7,0.7425]
[1756909370387,0.72355853,4435.5,4434.7,0.7425]
[1756909370582,0.7459,4435.3,4434.7,0.7425]
[1756909370790,0.48155853,4435.2,4434.6,3.2078]
[1756909370990,1.0274,4435.0,4434.6,3.2078]
[1756909371188,0.242,4434.9,4434.6,3.2078]
[1756909371394,1.0274,4435.5,4434.8,0.7425]
[1756909371584,0.72354352,4435.4,4434.8,0.7425]
[1756909371791,0.48154352,4435.3,4434.7,0.7425]
[1756909371984,0.7459,4435.1,4434.6,3.2078]
[1756909372184,0.7459,4434.9,4434.6,3.9503]
[1756909372385,0.7459,4435.4,4434.6,3.2078]
[1756909372590,0.72352163,4435.3,4434.7,0.7425]
[1756909372790,0.72352163,4435.3,4434.6,3.2078]
[1756909372791,0.48152163,4435.2,4434.6,3.2078]
[1756909372992,0.7459,4434.9,4434.2,0.7425]
[1756909373194,0.242,4434.8,4434.2,0.7425]
[1756909373497,0.242,4434.8,4434.7,40.8]
[1756909373696,0.242,4434.8,4434.7,41.5425]
[1756909374096,0.7459,4435.1,4434.8,0.7425]
[1756909374291,0.242,4435.0,4434.7,40.8]
[1756909374591,0.7459,4434.9,4434.7,40.8]
[1756909374999,0.5235,4435.0,4434.7,40.8]
[1756909375201,0.7459,4434.9,4434.8,0.7425]
[1756909375393,0.242,4434.9,4434.8,0.7425]
[1756909375700,0.242,4434.9,4434.7,40.8]
[1756909375701,0.7459,4434.8,4434.7,40.8]
[1756909375900,1.22770045,4434.8,4434.7,40.8]
[1756909376299,1.22770045,4434.8,4434.7,41.5425]
[1756909376694,1.22770045,4434.8,4434.7,40.8]
[1756909376898,1.0274,4434.5,4434.4,3.2078]
[1756909377092,33.2379,4435.6,4434.5,1.0151]
[1756909377293,0.72827024,4435.4,4434.7,0.7425]
[1756909377489,0.48627024,4435.3,4434.7,0.7425]
[1756909378909,0.48627024,4435.3,4435.0,0.7425]
[1756909379094,0.48627024,4435.3,4435.1,0.7425]
[1756909379495,0.48627024,4435.3,4435.0,0.2726]
[1756909380405,1.20814309,4436.1,4435.5,0.40574]
[1756909380602,1.20814309,4436.1,4435.1,4.46747]
[1756909380603,0.242,4436.1,4435.8,0.6904]
[1756909381094,0.7459,4435.9,4435.6,3.2078]
[1756909381301,0.7459,4435.9,4435.1,3.2078]
[1756909381501,0.7459,4435.9,4435.2,0.21146556]
[1756909381701,0.7459,4435.9,4435.1,3.2078]
[1756909381902,0.7459,4435.9,4435.2,0.21146929]
[1756909382097,0.242,4435.8,4435.2,0.6904]
[1756909382303,0.242,4435.8,4435.1,3.2078]
[1756909382501,0.242,4435.8,4435.2,0.90186805]
[1756909382698,0.242,4435.8,4435.2,0.6904]
[1756909382911,0.242,4435.8,4435.1,3.2078]
[1756909382912,0.242,4435.8,4435.4,0.6904]
[1756909383506,0.242,4435.7,4435.4,0.6904]
[1756909383897,1.48964309,4437.0,4435.6,3.2078]
[1756909384094,0.242,4436.2,4435.7,0.21144964]
[1756909384299,0.242,4436.2,4435.8,0.21144964]
[1756909384497,0.242,4436.2,4435.6,3.2078]
[1756909384699,0.242,4436.2,4435.7,0.21144222]
[1756909384904,0.242,4436.2,4435.8,0.21144222]
[1756909385106,0.242,4436.2,4436.0,0.6904]
[1756909386100,0.9879,4436.2,4436.0,0.6904]
[1756909387203,0.9879,4436.2,4435.6,3.2078]
[1756909387204,0.7459,4436.6,4435.7,0.6904]
[1756909387401,0.2815,4437.0,4436.2,0.6904]
[1756909387402,0.7459,4437.0,4436.2,0.6904]
[1756909387602,0.242,4436.9,4436.6,3.2078]
[1756909387805,0.242,4436.9,4436.7,0.6904]
[1756909388012,0.242,4436.9,4436.6,3.2078]
[1756909388306,0.242,4436.9,4436.8,41.4904]
[1756909388706,3.2078,4437.9,4436.9,0.6904]
[1756909388903,0.9869,4437.8,4437.2,0.6904]
[1756909389300,0.241,4437.8,4437.2,0.6904]
[1756909390402,0.9869,4437.8,4437.2,0.6904]
[1756909390603,0.9869,4437.8,4437.1,3.2078]
[1756909390604,0.7459,4437.7,4437.1,3.2078]
[1756909391004,0.7459,4437.7,4437.2,0.6736]
[1756909391205,0.241,4437.8,4437.2,0.6736]
[1756909392702,0.7404,4437.7,4437.1,3.2078]
[1756909392897,0.2742,4437.5,4437.1,3.2078]
[1756909393410,0.9814,4437.4,4437.1,3.2078]
[1756909393605,0.9814,4437.4,4437.2,0.6727]
[1756909393910,0.241,4437.4,4437.2,0.6727]
[1756909394099,0.241,4437.3,4437.2,0.6727]
[1756909395511,0.241,4437.5,4437.1,3.2078]
[1756909396005,0.241,4437.5,4437.2,0.6727]
[1756909396206,0.9814,4437.5,4437.2,0.6727]
[1756909396713,0.9814,4437.5,4437.3,41.4727]
[1756909397014,0.7404,4437.4,4437.3,40.8]
[1756909397811,4.7404,4437.4,4437.3,40.8]
[1756909398109,0.7404,4437.4,4436.7,0.6727]
[1756909398302,0.241,4437.3,4436.7,0.6727]
[1756909398507,0.7404,4437.2,4436.9,0.6727]
[1756909398703,0.241,4437.3,4436.8,40.8]
[1756909398912,0.7404,4437.2,4436.8,40.8]
[1756909399112,0.2742,4436.5,4436.1,3.2078]
[1756909399410,0.241,4436.4,4436.1,3.2078]
[1756909399610,0.7404,4436.3,4436.2,40.8]
[1756909403812,0.7404,4436.3,4436.1,3.2078]
[1756909404115,0.7404,4436.3,4435.6,0.6727]
[1756909404116,0.7404,4435.4,4435.3,3.2078]
[1756909404317,0.9814,4435.4,4435.3,3.2078]
[1756909404513,0.2742,4436.0,4435.3,3.2078]
[1756909404714,0.241,4435.9,4435.6,0.6727]
[1756909404919,0.241,4435.9,4435.3,3.2078]
[1756909405114,0.2742,4435.5,4435.3,3.2078]
[1756909405319,0.7404,4435.3,4434.8,3.2078]
[1756909405819,0.241,4435.4,4434.8,3.2078]
[1756909406411,0.7404,4435.3,4434.8,3.2078]
[1756909406611,0.241,4435.4,4434.8,3.2078]
[1756909406816,0.7404,4435.3,4434.8,3.2078]
[1756909407212,0.241,4435.4,4434.8,3.2078]
[1756909407418,0.2742,4434.5,4434.3,3.2078]
[1756909407618,0.9814,4434.4,4434.3,3.2078]
[1756909408115,0.9814,4434.4,4434.3,44.0078]
[1756909408417,0.9814,4434.4,4434.3,40.8]
[1756909412522,0.9814,4434.4,4433.5,3.2078]
[1756909412523,0.241,4434.4,4433.5,3.2078]
[1756909413119,0.7404,4434.3,4433.6,40.8]
[1756909413328,0.241,4434.4,4433.6,40.8]
[1756909413514,3.2078,4434.3,4433.6,40.8]
[1756909413719,1.0146,4434.0,4433.6,40.8]
[1756909413917,0.241,4433.9,4433.7,0.6727]
[1756909414524,0.241,4433.9,4433.6,40.8]
[1756909414722,0.241,4433.9,4433.7,0.6727]
[1756909415122,0.241,4433.9,4433.6,40.8]
[1756909415522,0.241,4433.9,4433.7,0.6727]
[1756909415724,0.241,4433.9,4433.6,40.8]
[1756909415929,0.7404,4433.8,4433.7,0.6727]
[1756909416117,0.7404,4433.8,4433.6,40.8]
[1756909416532,4.15384998,4433.9,4433.6,40.8]
[1756909416533,0.7404,4433.7,4433.6,40.8]
[1756909417138,1.0146,4434.0,4433.6,40.8]
[1756909417333,0.241,4433.9,4433.7,0.6727]
[1756909417531,0.241,4433.9,4433.0,3.3441]
[1756909417532,0.7404,4433.8,4433.1,0.6727]
[1756909418039,0.7404,4433.8,4433.2,40.8]
[1756909418538,0.2742,4434.0,4433.3,0.6727]
[1756909418739,0.241,4433.9,4433.3,0.6727]
[1756909419438,3.2078,4434.3,4433.2,40.8]
[1756909419439,3.2078,4434.3,4433.6,0.6727]
[1756909419637,0.241,4434.2,4434.1,0.6727]
[1756909420234,0.241,4434.2,4434.1,41.4727]
[1756909420837,0.7404,4434.7,4434.1,41.4727]
[1756909421042,0.7404,4434.5,4434.2,0.6727]
[1756909421244,0.7404,4434.5,4434.1,40.8]
[1756909421245,0.7404,4434.4,4434.1,40.8]
[1756909421543,0.7404,4434.4,4434.1,41.4727]
[1756909421745,0.7404,4434.4,4434.1,40.8]
[1756909422036,0.9071,4434.6,4434.2,0.647]
[1756909422231,0.241,4434.5,4434.2,0.647]
[1756909423442,0.241,4434.5,4434.1,40.8]
[1756909423639,0.241,4434.4,4434.2,0.647]
[1756909424143,0.241,4434.4,4434.1,40.8]
[1756909424343,0.241,4434.4,4434.2,0.647]
[1756909424540,32.48,4434.9,4434.2,0.647]
[1756909424745,4.19344998,4434.5,4433.3,3.2078]
[1756909424939,0.6661,4434.4,4433.3,3.2078]
[1756909425144,0.6661,4434.2,4433.3,3.2078]
[1756909425441,0.6661,4434.2,4433.4,40.8]
[1756909425643,0.6661,4434.2,4433.5,0.647]
[1756909426440,3.8739,4434.2,4433.5,0.647]
[1756909427846,3.2078,4434.2,4433.4,40.8]
[1756909428050,0.9467,4433.5,4433.4,40.8]
[1756909428244,1.1877,4433.5,4433.4,40.8]
[1756909429436,0.6661,4433.9,4433.4,40.8]
[1756909429644,0.9071,4433.8,4433.5,0.647]
[1756909429946,0.6661,4433.7,4433.5,0.647]
[1756909430141,0.6661,4434.4,4433.5,0.7833]
[1756909430344,0.2806,4434.0,4433.6,0.647]
[1756909430741,0.6661,4433.9,4433.6,0.647]
[1756909430941,0.9071,4433.8,4433.6,0.647]
[1756909431648,0.241,4433.8,4433.4,41.447]
[1756909431847,0.241,4433.8,4433.5,0.647]
[1756909432043,0.241,4433.8,4433.5,0.7833]
[1756909432243,0.241,4433.7,4433.5,0.7833]
[1756909432441,3.2078,4434.7,4433.5,0.7833]
[1756909432442,0.6661,4434.6,4433.5,0.7833]
[1756909432637,0.6661,4434.6,4433.9,0.647]
[1756909432638,0.72404408,4434.4,4433.9,0.647]
[1756909432846,0.241,4434.3,4434.0,0.1363]
[1756909433149,0.241,4434.3,4434.1,0.647]
[1756909433549,0.241,4434.3,4434.2,41.447]
[1756909434251,0.6661,4435.1,4434.3,0.647]
[1756909434546,0.241,4435.3,4434.9,0.647]
[1756909434747,0.241,4435.3,4435.0,0.2381]
[1756909434950,0.241,4435.3,4435.2,0.647]
[1756909435145,0.9467,4436.0,4435.2,0.85848778]
[1756909435342,0.72455974,4435.9,4435.2,0.647]
[1756909435543,0.48355974,4435.8,4435.3,40.8]
[1756909436448,0.6661,4435.7,4435.3,41.447]
[1756909436649,1.14965974,4435.6,4435.4,0.647]
[1756909436952,0.6661,4435.6,4435.4,0.647]
[1756909437145,0.241,4435.5,4435.4,0.647]
[1756909437345,1.1877,4435.5,4435.3,41.447]
[1756909437852,0.6661,4435.4,4435.3,41.447]
[1756909438146,0.241,4435.5,4435.4,0.647]
[1756909438542,0.9071,4435.5,4435.3,40.8]
[1756909438747,0.241,4435.5,4435.3,40.8]
[1756909438943,0.9071,4435.5,4435.3,40.8]
[1756909439139,0.241,4435.5,4435.4,0.647]
[1756909440141,32.49,4436.2,4435.4,0.647]
[1756909440443,0.9071,4436.1,4435.5,0.85845171]